fUST/lending_fUST_20260514
["ID","MTS","AMOUNT","RATE_DAILY","PERIOD"]
[422203307,1778689839000,-500.0,0.00010958,2]
[422203315,1778689839000,-617.62823663,0.00010958,2]
[422203310,1778689839000,-500.0,0.00010958,2]
[422203420,1778689840000,-500.0,0.00010958,2]
[422203441,1778689840000,-500.0,0.00010958,2]
[422203427,1778689840000,-500.0,0.00010958,2]
[422203426,1778689840000,-3031.7,0.00010958,2]
[422203424,1778689840000,-1316.7,0.00010958,2]
[422203437,1778689840000,-627.13,0.00010958,2]
[422203431,1778689840000,-500.0,0.00010958,2]
[422203429,1778689840000,-1136.43,0.00010958,2]
[422203435,1778689840000,-500.0,0.00010958,2]
[422203433,1778689840000,-500.0,0.00010958,2]
[422203438,1778689840000,-805.48,0.00010958,2]
[422203443,1778689840000,-500.0,0.00010958,2]
[422203446,1778689840000,-500.0,0.00010958,2]
[422203459,1778689840000,-1379.03,0.00010958,2]
[422203457,1778689840000,-500.0,0.00010958,2]
[422203455,1778689840000,-1145.66,0.00010958,2]
[422203448,1778689840000,-500.0,0.00010958,2]
[422203452,1778689840000,-997.92,0.00010958,2]
[422203422,1778689840000,-1146.23,0.00010958,2]
[422203454,1778689840000,-500.0,0.00010958,2]
[422203450,1778689840000,-608.3,0.00010958,2]
[422203463,1778689840000,-1271.56,0.00010958,2]
[422203461,1778689840000,-1142.65,0.00010958,2]
[422203464,1778689840000,-3642.04,0.00010958,2]
[422203466,1778689840000,-500.0,0.00010958,2]
[422203468,1778689840000,-2629.94,0.00010958,2]
[422203470,1778689840000,-2315.37,0.00010958,2]
[422203445,1778689840000,-500.0,0.00010958,2]
[422203419,1778689840000,-500.0,0.00010958,2]
[422203410,1778689840000,-500.0,0.00010958,2]
[422203412,1778689840000,-845.58,0.00010958,2]
[422203475,1778689840000,-2881.21,0.00010958,2]
[422203365,1778689840000,-500.0,0.00010958,2]
[422203361,1778689840000,-500.0,0.00010958,2]
[422203362,1778689840000,-500.0,0.00010958,2]
[422203367,1778689840000,-500.0,0.00010958,2]
[422203369,1778689840000,-500.0,0.00010958,2]
[422203371,1778689840000,-500.0,0.00010958,2]
[422203384,1778689840000,-655.82,0.00010958,2]
[422203382,1778689840000,-500.0,0.00010958,2]
[422203389,1778689840000,-500.0,0.00010958,2]
[422203373,1778689840000,-500.0,0.00010958,2]
[422203385,1778689840000,-536.72564575,0.00010958,2]
[422203387,1778689840000,-500.0,0.00010958,2]
[422203380,1778689840000,-500.0,0.00010958,2]
[422203375,1778689840000,-500.0,0.00010958,2]
[422203377,1778689840000,-500.0,0.00010958,2]
[422203391,1778689840000,-500.0,0.00010958,2]
[422203396,1778689840000,-539.1,0.00010958,2]
[422203398,1778689840000,-500.0,0.00010958,2]
[422203400,1778689840000,-500.0,0.00010958,2]
[422203395,1778689840000,-500.0,0.00010958,2]
[422203404,1778689840000,-500.0,0.00010958,2]
[422203402,1778689840000,-571.79,0.00010958,2]
[422203406,1778689840000,-500.0,0.00010958,2]
[422203408,1778689840000,-500.0,0.00010958,2]
[422203416,1778689840000,-2114.72,0.00010958,2]
[422203414,1778689840000,-500.0,0.00010958,2]
[422203417,1778689840000,-500.0,0.00010958,2]
[422203393,1778689840000,-500.29027081,0.00010958,2]
[422203477,1778689840000,-500.0,0.00010958,2]
[422203483,1778689840000,-500.0,0.00010958,2]
[422203550,1778689840000,-3233.95142162,0.000111,2]
[422203543,1778689840000,-500.0,0.00010958,2]
[422203552,1778689840000,-9179.20698378,0.00011132,2]
[422203558,1778689840000,-500.0,0.00011232,2]
[422203546,1778689840000,-1444.1,0.00010958,2]
[422203554,1778689840000,-3233.95142162,0.000112,2]
[422203548,1778689840000,-3233.95142162,0.00011,2]
[422203539,1778689840000,-2972.54,0.00010958,2]
[422203556,1778689840000,-1648.1874,0.00011232,2]
[422203561,1778689840000,-501.06,0.00011232,2]
[422203560,1778689840000,-500.0757,0.00011232,2]
[422203563,1778689840000,-500.0,0.00011232,2]
[422203565,1778689840000,-500.0,0.00011232,2]
[422203572,1778689840000,-500.0,0.00011232,2]
[422203576,1778689840000,-500.0,0.00011232,2]
[422203582,1778689840000,-704.16,0.00011232,2]
[422203581,1778689840000,-500.0,0.00011232,2]
[422203568,1778689840000,-733.21,0.00011232,2]
[422203574,1778689840000,-1577.63,0.00011232,2]
[422203579,1778689840000,-500.0,0.00011232,2]
[422203570,1778689840000,-649.25,0.00011232,2]
[422203584,1778689840000,-515.62,0.00011232,2]
[422203586,1778689840000,-500.0,0.00011232,2]
[422203590,1778689840000,-500.0,0.00011232,2]
[422203588,1778689840000,-574.59,0.00011232,2]
[422203592,1778689840000,-611.1,0.00011232,2]
[422203474,1778689840000,-601.64,0.00010958,2]
[422203544,1778689840000,-1030.27,0.00010958,2]
[422203541,1778689840000,-500.0,0.00010958,2]
[422203567,1778689840000,-500.0,0.00011232,2]
[422203537,1778689840000,-3041.01,0.00010958,2]
[422203479,1778689840000,-1161.45,0.00010958,2]
[422203523,1778689840000,-1330.01,0.00010958,2]
[422203472,1778689840000,-500.0,0.00010958,2]
[422203481,1778689840000,-500.0,0.00010958,2]
[422203485,1778689840000,-992.96,0.00010958,2]
[422203487,1778689840000,-613.67,0.00010958,2]
[422203491,1778689840000,-500.0,0.00010958,2]
[422203493,1778689840000,-228.09349779,0.00010958,2]
[422203501,1778689840000,-1217.87,0.00010958,2]
[422203495,1778689840000,-1045.79,0.00010958,2]
[422203503,1778689840000,-826.91,0.00010958,2]
[422203499,1778689840000,-636.45,0.00010958,2]
[422203505,1778689840000,-21466.07,0.00010958,2]
[422203489,1778689840000,-500.0,0.00010958,2]
[422203507,1778689840000,-1004.69,0.00010958,2]
[422203521,1778689840000,-1388.89,0.00010958,2]
[422203535,1778689840000,-3770.02,0.00010958,2]
[422203497,1778689840000,-2225.71,0.00010958,2]
[422203517,1778689840000,-500.0,0.00010958,2]
[422203519,1778689840000,-1468.69,0.00010958,2]
[422203533,1778689840000,-500.0,0.00010958,2]
[422203529,1778689840000,-1822.76,0.00010958,2]
[422203531,1778689840000,-1804.66,0.00010958,2]
[422203527,1778689840000,-580.37,0.00010958,2]
[422203515,1778689840000,-500.0,0.00010958,2]
[422203511,1778689840000,-1765.03,0.00010958,2]
[422203513,1778689840000,-3787.35,0.00010958,2]
[422203509,1778689840000,-500.0,0.00010958,2]
[422203525,1778689840000,-1888.31,0.00010958,2]
[422203650,1778689841000,-500.0,0.00011232,2]
[422203644,1778689841000,-1316.7,0.00011232,2]
[422203647,1778689841000,-257.87275444,0.00011232,2]
[422203646,1778689841000,-1136.43,0.00011232,2]
[422203649,1778689841000,-805.48,0.00011232,2]
[422203648,1778689841000,-627.13,0.00011232,2]
[422203638,1778689841000,-500.0,0.00011232,2]
[422203652,1778689841000,-997.92,0.00011232,2]
[422203651,1778689841000,-608.3,0.00011232,2]
[422203641,1778689841000,-2114.72,0.00011232,2]
[422203634,1778689841000,-555.51,0.00011232,2]
[422203643,1778689841000,-1146.23,0.00011232,2]
[422203642,1778689841000,-500.0,0.00011232,2]
[422203645,1778689841000,-3031.7,0.00011232,2]
[422203678,1778689841000,-500.0,0.00011232,2]
[422203664,1778689841000,-500.0,0.00011232,2]
[422203653,1778689841000,-1145.66,0.00011232,2]
[422203655,1778689841000,-1142.65,0.00011232,2]
[422203665,1778689841000,-992.96,0.00011232,2]
[422203656,1778689841000,-1271.56,0.00011232,2]
[422203657,1778689841000,-3642.04,0.00011232,2]
[422203658,1778689841000,-2629.94,0.00011232,2]
[422203663,1778689841000,-500.0,0.00011232,2]
[422203662,1778689841000,-1161.45,0.00011232,2]
[422203661,1778689841000,-2881.21,0.00011232,2]
[422203660,1778689841000,-601.64,0.00011232,2]
[422203659,1778689841000,-2315.37,0.00011232,2]
[422203636,1778689841000,-655.82,0.00011232,2]
[422203654,1778689841000,-1379.03,0.00011232,2]
[422203635,1778689841000,-500.0,0.00011232,2]
[422203602,1778689841000,-500.0,0.00011232,2]
[422203632,1778689841000,-500.0,0.00011232,2]
[422203677,1778689841000,-3787.35,0.00011232,2]
[422203600,1778689841000,-500.0,0.00011232,2]
[422203596,1778689841000,-899.26,0.00011232,2]
[422203594,1778689841000,-500.0,0.00011232,2]
[422203604,1778689841000,-1218.09,0.00011232,2]
[422203598,1778689841000,-629.04,0.00011232,2]
[422203610,1778689841000,-500.0,0.00011232,2]
[422203608,1778689841000,-500.0,0.00011232,2]
[422203606,1778689841000,-500.0,0.00011232,2]
[422203611,1778689841000,-751.85,0.00011232,2]
[422203613,1778689841000,-500.0,0.00011232,2]
[422203620,1778689841000,-553.54,0.00011232,2]
[422203622,1778689841000,-500.0,0.00011232,2]
[422203626,1778689841000,-500.0,0.00011232,2]
[422203617,1778689841000,-648.27,0.00011232,2]
[422203621,1778689841000,-915.37,0.00011232,2]
[422203618,1778689841000,-500.0,0.00011232,2]
[422203624,1778689841000,-500.0,0.00011232,2]
[422203623,1778689841000,-1305.77,0.00011232,2]
[422203614,1778689841000,-500.0,0.00011232,2]
[422203625,1778689841000,-524.47,0.00011232,2]
[422203616,1778689841000,-748.21,0.00011232,2]
[422203629,1778689841000,-583.12,0.00011232,2]
[422203627,1778689841000,-639.91,0.00011232,2]
[422203630,1778689841000,-501.56,0.00011232,2]
[422203628,1778689841000,-1336.78,0.00011232,2]
[422203631,1778689841000,-576.46,0.00011232,2]
[422203637,1778689841000,-539.1,0.00011232,2]
[422203633,1778689841000,-500.0,0.00011232,2]
[422203639,1778689841000,-571.79,0.00011232,2]
[422203667,1778689841000,-500.0,0.00011232,2]
[422203640,1778689841000,-845.58,0.00011232,2]
[422203670,1778689841000,-636.45,0.00011232,2]
[422203698,1778689841000,-3233.95142162,0.000114,2]
[422203701,1778689841000,-501.06,0.00011506,2]
[422203708,1778689841000,-1577.63,0.00011506,2]
[422203706,1778689841000,-649.25,0.00011506,2]
[422203710,1778689841000,-500.0,0.00011506,2]
[422203709,1778689841000,-500.0,0.00011506,2]
[422203711,1778689841000,-500.0,0.00011506,2]
[422203718,1778689841000,-899.26,0.00011506,2]
[422203714,1778689841000,-574.59,0.00011506,2]
[422203715,1778689841000,-500.0,0.00011506,2]
[422203707,1778689841000,-490.34898026,0.00011506,2]
[422203713,1778689841000,-500.0,0.00011506,2]
[422203716,1778689841000,-611.1,0.00011506,2]
[422203712,1778689841000,-704.16,0.00011506,2]
[422203717,1778689841000,-500.0,0.00011506,2]
[422203719,1778689841000,-629.04,0.00011506,2]
[422203730,1778689841000,-500.0,0.00011506,2]
[422203720,1778689841000,-500.0,0.00011506,2]
[422203721,1778689841000,-500.0,0.00011506,2]
[422203731,1778689841000,-553.54,0.00011506,2]
[422203729,1778689841000,-648.27,0.00011506,2]
[422203722,1778689841000,-1218.09,0.00011506,2]
[422203725,1778689841000,-751.85,0.00011506,2]
[422203726,1778689841000,-323.06,0.00011506,2]
[422203723,1778689841000,-500.0,0.00011506,2]
[422203724,1778689841000,-500.0,0.00011506,2]
[422203728,1778689841000,-748.21,0.00011506,2]
[422203732,1778689841000,-915.37,0.00011506,2]
[422203668,1778689841000,-1045.79,0.00011232,2]
[422203697,1778689841000,-557.5788265,0.000114,2]
[422203699,1778689841000,-3233.95142162,0.000115,2]
[422203727,1778689841000,-500.0,0.00011506,2]
[422203696,1778689841000,-6049.9606186,0.00011356,2]
[422203702,1778689841000,-500.0,0.00011506,2]
[422203666,1778689841000,-613.67,0.00011232,2]
[422203671,1778689841000,-1217.87,0.00011232,2]
[422203676,1778689841000,-1765.03,0.00011232,2]
[422203675,1778689841000,-500.0,0.00011232,2]
[422203674,1778689841000,-1004.69,0.00011232,2]
[422203669,1778689841000,-2225.71,0.00011232,2]
[422203672,1778689841000,-826.91,0.00011232,2]
[422203679,1778689841000,-500.0,0.00011232,2]
[422203680,1778689841000,-1468.69,0.00011232,2]
[422203681,1778689841000,-1388.89,0.00011232,2]
[422203682,1778689841000,-1330.01,0.00011232,2]
[422203691,1778689841000,-1444.1,0.00011232,2]
[422203690,1778689841000,-1030.27,0.00011232,2]
[422203688,1778689841000,-3041.01,0.00011232,2]
[422203673,1778689841000,-21466.07,0.00011232,2]
[422203687,1778689841000,-3770.02,0.00011232,2]
[422203685,1778689841000,-1822.76,0.00011232,2]
[422203700,1778689841000,-500.0,0.00011506,2]
[422203703,1778689841000,-500.0,0.00011506,2]
[422203705,1778689841000,-733.21,0.00011506,2]
[422203704,1778689841000,-500.0,0.00011506,2]
[422203733,1778689841000,-597.78920216,0.00011506,2]
[422203695,1778689841000,-11758.7939541,0.00011356,2]
[422203692,1778689841000,-3233.95142162,0.000113,2]
[422203693,1778689841000,-7673.2842771,0.00011356,2]
[422203684,1778689841000,-580.37,0.00011232,2]
[422203686,1778689841000,-1804.66,0.00011232,2]
[422203689,1778689841000,-2972.54,0.00011232,2]
[422203694,1778689841000,-434.5040566,0.00011356,2]
[422203683,1778689841000,-1888.31,0.00011232,2]
[422203775,1778689842000,-613.67,0.00011506,2]
[422203773,1778689842000,-500.0,0.00011506,2]
[422203774,1778689842000,-992.96,0.00011506,2]
[422203771,1778689842000,-1161.45,0.00011506,2]
[422203782,1778689842000,-21466.07,0.00011506,2]
[422203764,1778689842000,-1142.65,0.00011506,2]
[422203765,1778689842000,-1271.56,0.00011506,2]
[422203768,1778689842000,-2315.37,0.00011506,2]
[422203767,1778689842000,-2629.94,0.00011506,2]
[422203776,1778689842000,-500.0,0.00011506,2]
[422203766,1778689842000,-3642.04,0.00011506,2]
[422203772,1778689842000,-500.0,0.00011506,2]
[422203763,1778689842000,-1379.03,0.00011506,2]
[422203784,1778689842000,-500.0,0.00011506,2]
[422203778,1778689842000,-2225.71,0.00011506,2]
[422203777,1778689842000,-1045.79,0.00011506,2]
[422203780,1778689842000,-1217.87,0.00011506,2]
[422203781,1778689842000,-826.91,0.00011506,2]
[422203785,1778689842000,-1765.03,0.00011506,2]
[422203795,1778689842000,-1804.66,0.00011506,2]
[422203786,1778689842000,-3787.35,0.00011506,2]
[422203787,1778689842000,-500.0,0.00011506,2]
[422203790,1778689842000,-1388.89,0.00011506,2]
[422203789,1778689842000,-1468.69,0.00011506,2]
[422203792,1778689842000,-1888.31,0.00011506,2]
[422203762,1778689842000,-1145.66,0.00011506,2]
[422203791,1778689842000,-1330.01,0.00011506,2]
[422203779,1778689842000,-636.45,0.00011506,2]
[422203769,1778689842000,-601.64,0.00011506,2]
[422203747,1778689842000,-539.1,0.00011506,2]
[422203759,1778689842000,-500.0,0.00011506,2]
[422203788,1778689842000,-500.0,0.00011506,2]
[422203734,1778689842000,-1305.77,0.00011506,2]
[422203737,1778689842000,-500.0,0.00011506,2]
[422203738,1778689842000,-639.91,0.00011506,2]
[422203739,1778689842000,-1336.78,0.00011506,2]
[422203735,1778689842000,-500.0,0.00011506,2]
[422203743,1778689842000,-313.46,0.00011506,2]
[422203736,1778689842000,-524.47,0.00011506,2]
[422203740,1778689842000,-583.12,0.00011506,2]
[422203742,1778689842000,-576.46,0.00011506,2]
[422203741,1778689842000,-501.56,0.00011506,2]
[422203751,1778689842000,-2114.72,0.00011506,2]
[422203746,1778689842000,-655.82,0.00011506,2]
[422203754,1778689842000,-1316.7,0.00011506,2]
[422203745,1778689842000,-500.0,0.00011506,2]
[422203757,1778689842000,-627.13,0.00011506,2]
[422203750,1778689842000,-845.58,0.00011506,2]
[422203755,1778689842000,-3031.7,0.00011506,2]
[422203749,1778689842000,-571.79,0.00011506,2]
[422203753,1778689842000,-1146.23,0.00011506,2]
[422203744,1778689842000,-500.0,0.00011506,2]
[422203756,1778689842000,-1136.43,0.00011506,2]
[422203752,1778689842000,-500.0,0.00011506,2]
[422203748,1778689842000,-500.0,0.00011506,2]
[422203758,1778689842000,-805.48,0.00011506,2]
[422203761,1778689842000,-997.92,0.00011506,2]
[422203760,1778689842000,-608.3,0.00011506,2]
[422203770,1778689842000,-2881.21,0.00011506,2]
[422203793,1778689842000,-580.37,0.00011506,2]
[422203783,1778689842000,-1004.69,0.00011506,2]
[422203807,1778689842000,-171.1037,0.00011643,2]
[422203836,1778689842000,-629.04,0.0001178,2]
[422203834,1778689842000,-611.1,0.0001178,2]
[422203838,1778689842000,-500.0,0.0001178,2]
[422203847,1778689842000,-648.27,0.0001178,2]
[422203848,1778689842000,-500.0,0.0001178,2]
[422203841,1778689842000,-500.0,0.0001178,2]
[422203854,1778689842000,-524.47,0.0001178,2]
[422203850,1778689842000,-553.54,0.0001178,2]
[422203840,1778689842000,-500.0,0.0001178,2]
[422203852,1778689842000,-1305.77,0.0001178,2]
[422203839,1778689842000,-1218.09,0.0001178,2]
[422203842,1778689842000,-751.85,0.0001178,2]
[422203853,1778689842000,-500.0,0.0001178,2]
[422203832,1778689842000,-500.0,0.0001178,2]
[422203851,1778689842000,-915.37,0.0001178,2]
[422203843,1778689842000,-500.0,0.0001178,2]
[422203856,1778689842000,-639.91,0.0001178,2]
[422203867,1778689842000,-845.58,0.0001178,2]
[422203866,1778689842000,-571.79,0.0001178,2]
[422203857,1778689842000,-1336.78,0.0001178,2]
[422203860,1778689842000,-576.46,0.0001178,2]
[422203858,1778689842000,-583.12,0.0001178,2]
[422203855,1778689842000,-500.0,0.0001178,2]
[422203861,1778689842000,-500.0,0.0001178,2]
[422203862,1778689842000,-500.0,0.0001178,2]
[422203863,1778689842000,-655.82,0.0001178,2]
[422203864,1778689842000,-539.1,0.0001178,2]
[422203794,1778689842000,-1822.76,0.00011506,2]
[422203845,1778689842000,-748.21,0.0001178,2]
[422203831,1778689842000,-574.59,0.0001178,2]
[422203859,1778689842000,-501.56,0.0001178,2]
[422203837,1778689842000,-500.0,0.0001178,2]
[422203829,1778689842000,-500.0,0.0001178,2]
[422203798,1778689842000,-2972.54,0.00011506,2]
[422203803,1778689842000,-3233.95142162,0.000116,2]
[422203805,1778689842000,-720.0,0.00011609,2]
[422203801,1778689842000,-263.0,0.00011507,3]
[422203809,1778689842000,-195.72628761,0.00011691,2]
[422203811,1778689842000,-287.10703299,0.0001176,2]
[422203799,1778689842000,-1030.27,0.00011506,2]
[422203800,1778689842000,-1444.1,0.00011506,2]
[422203802,1778689842000,-160.0,0.000116,4]
[422203812,1778689842000,-10000.0,0.0001178,3]
[422203813,1778689842000,-1781.3386,0.0001178,2]
[422203814,1778689842000,-543.1288,0.0001178,2]
[422203796,1778689842000,-3770.02,0.00011506,2]
[422203825,1778689842000,-500.0,0.0001178,2]
[422203827,1778689842000,-704.16,0.0001178,2]
[422203822,1778689842000,-649.25,0.0001178,2]
[422203835,1778689842000,-899.26,0.0001178,2]
[422203826,1778689842000,-500.0,0.0001178,2]
[422203820,1778689842000,-500.0,0.0001178,2]
[422203818,1778689842000,-500.0,0.0001178,2]
[422203797,1778689842000,-3041.01,0.00011506,2]
[422203865,1778689842000,-500.0,0.0001178,2]
[422203819,1778689842000,-500.0,0.0001178,2]
[422203817,1778689842000,-501.06,0.0001178,2]
[422203821,1778689842000,-733.21,0.0001178,2]
[422203823,1778689842000,-1577.63,0.0001178,2]
[422203824,1778689842000,-500.0,0.0001178,2]
[422203815,1778689842000,-500.0,0.0001178,2]
[422203922,1778689843000,-232.9,0.00011797,7]
[422203902,1778689843000,-1004.69,0.0001178,2]
[422203903,1778689843000,-500.0,0.0001178,2]
[422203906,1778689843000,-3787.35,0.0001178,2]
[422203900,1778689843000,-826.91,0.0001178,2]
[422203901,1778689843000,-21466.07,0.0001178,2]
[422203899,1778689843000,-1217.87,0.0001178,2]
[422203896,1778689843000,-1045.79,0.0001178,2]
[422203891,1778689843000,-500.0,0.0001178,2]
[422203904,1778689843000,-1765.03,0.0001178,2]
[422203898,1778689843000,-636.45,0.0001178,2]
[422203909,1778689843000,-1468.69,0.0001178,2]
[422203907,1778689843000,-500.0,0.0001178,2]
[422203908,1778689843000,-500.0,0.0001178,2]
[422203910,1778689843000,-1388.89,0.0001178,2]
[422203911,1778689843000,-1330.01,0.0001178,2]
[422203913,1778689843000,-580.37,0.0001178,2]
[422203923,1778689843000,-232.9,0.00011797,7]
[422203921,1778689843000,-232.9,0.00011797,7]
[422203915,1778689843000,-1804.66,0.0001178,2]
[422203924,1778689843000,-232.9,0.00011797,7]
[422203888,1778689843000,-500.0,0.0001178,2]
[422203897,1778689843000,-2225.71,0.0001178,2]
[422203912,1778689843000,-1888.31,0.0001178,2]
[422203877,1778689843000,-608.3,0.0001178,2]
[422203889,1778689843000,-1161.45,0.0001178,2]
[422203914,1778689843000,-1822.76,0.0001178,2]
[422203868,1778689843000,-2114.72,0.0001178,2]
[422203872,1778689843000,-3031.7,0.0001178,2]
[422203870,1778689843000,-1146.23,0.0001178,2]
[422203869,1778689843000,-500.0,0.0001178,2]
[422203871,1778689843000,-1316.7,0.0001178,2]
[422203873,1778689843000,-1136.43,0.0001178,2]
[422203879,1778689843000,-1145.66,0.0001178,2]
[422203880,1778689843000,-1379.03,0.0001178,2]
[422203881,1778689843000,-1142.65,0.0001178,2]
[422203886,1778689843000,-601.64,0.0001178,2]
[422203874,1778689843000,-627.13,0.0001178,2]
[422203878,1778689843000,-997.92,0.0001178,2]
[422203875,1778689843000,-805.48,0.0001178,2]
[422203893,1778689843000,-992.96,0.0001178,2]
[422203894,1778689843000,-613.67,0.0001178,2]
[422203895,1778689843000,-500.0,0.0001178,2]
[422203883,1778689843000,-3642.04,0.0001178,2]
[422203882,1778689843000,-1271.56,0.0001178,2]
[422203887,1778689843000,-2881.21,0.0001178,2]
[422203885,1778689843000,-2315.37,0.0001178,2]
[422203884,1778689843000,-2629.94,0.0001178,2]
[422203876,1778689843000,-500.0,0.0001178,2]
[422203917,1778689843000,-3041.01,0.0001178,2]
[422203953,1778689843000,-169.79,0.000118,7]
[422203916,1778689843000,-3770.02,0.0001178,2]
[422203948,1778689843000,-169.79,0.000118,7]
[422203918,1778689843000,-2972.54,0.0001178,2]
[422203967,1778689843000,-169.79,0.00011804,7]
[422203966,1778689843000,-169.79,0.00011804,7]
[422203956,1778689843000,-169.79,0.000118,7]
[422203957,1778689843000,-169.79,0.000118,7]
[422203968,1778689843000,-160.0,0.00011819,3]
[422203958,1778689843000,-5140.92020093,0.000118,2]
[422203965,1778689843000,-169.79,0.00011804,7]
[422203959,1778689843000,-3233.95142162,0.000118,2]
[422203946,1778689843000,-232.9,0.000118,7]
[422203960,1778689843000,-232.9,0.00011804,7]
[422203961,1778689843000,-232.9,0.00011804,7]
[422203963,1778689843000,-232.9,0.00011804,7]
[422203964,1778689843000,-169.79,0.00011804,7]
[422203969,1778689843000,-9645.66182778,0.000119,21]
[422203972,1778689843000,-704.33719717,0.00011948,2]
[422203970,1778689843000,-3935.2,0.000119,2]
[422203971,1778689843000,-3233.95142162,0.000119,2]
[422203974,1778689843000,-554976.42128388,0.00012,2]
[422203973,1778689843000,-516.90096309,0.00011957,2]
[422203975,1778689843000,-312766.03350384,0.00012,2]
[422203962,1778689843000,-232.9,0.00011804,7]
[422203943,1778689843000,-232.9,0.000118,7]
[422203955,1778689843000,-169.79,0.000118,7]
[422203947,1778689843000,-232.9,0.000118,7]
[422203919,1778689843000,-1030.27,0.0001178,2]
[422203920,1778689843000,-1444.1,0.0001178,2]
[422203926,1778689843000,-232.9,0.00011797,7]
[422203925,1778689843000,-232.9,0.00011797,7]
[422203936,1778689843000,-169.79,0.00011797,7]
[422203928,1778689843000,-232.9,0.00011797,7]
[422203937,1778689843000,-169.79,0.00011797,7]
[422203951,1778689843000,-169.79,0.000118,7]
[422203927,1778689843000,-232.9,0.00011797,7]
[422203930,1778689843000,-169.79,0.00011797,7]
[422203935,1778689843000,-169.79,0.00011797,7]
[422203929,1778689843000,-232.9,0.00011797,7]
[422203931,1778689843000,-169.79,0.00011797,7]
[422203945,1778689843000,-232.9,0.000118,7]
[422203934,1778689843000,-169.79,0.00011797,7]
[422203944,1778689843000,-232.9,0.000118,7]
[422203940,1778689843000,-160.0,0.000118,5]
[422203949,1778689843000,-169.79,0.000118,7]
[422203942,1778689843000,-232.9,0.000118,7]
[422203938,1778689843000,-169.79,0.00011797,7]
[422203939,1778689843000,-152.0,0.000118,7]
[422203932,1778689843000,-169.79,0.00011797,7]
[422203933,1778689843000,-169.79,0.00011797,7]
[422203941,1778689843000,-232.9,0.000118,7]
[422203980,1778689844000,-500.0,0.00010958,2]
[422203976,1778689844000,-59652.75198642,0.00012,2]
[422203978,1778689844000,-837.82014782,0.00012,2]
[422203977,1778689844000,-5675.334293,0.00012,2]
[422203979,1778689844000,-160.0,0.00010849,2]
[422203981,1778689844000,-15144.02222857,0.00012,2]
[422203982,1778689844000,-837.573391,0.00012,2]
[422203983,1778689844000,-827.55422988,0.00012,2]
[422203988,1778689844000,-152.0,9.739e-05,2]
[422203985,1778689844000,152.0,0.00013738,30]
[422203989,1778689844000,-500.0,0.00010958,2]
[422203991,1778689844000,-3035.00191587,0.00012,2]
[422203992,1778689844000,-11239.21160683,0.00012,2]
[422203984,1778689844000,-1278.08495414,0.00012,2]
[422203987,1778689844000,-152.0,9.739e-05,2]
[422203986,1778689844000,152.0,0.00013758,30]
[422203990,1778689844000,-4007.85068413,0.00012,2]
[422204010,1778689846000,-11547.13151757,0.00012,2]
[422204009,1778689846000,-955.19,0.00011232,2]
[422204007,1778689846000,-3943.35,0.00012,2]
[422204005,1778689846000,-191.40468866,0.0001176,2]